bitfinex-derivatives/quotes_SOLF0:USTF0_20250730
["timestamp","ask_amount","ask_price","bid_price","bid_amount"]
[1753902701144,11.5589144,172.42,172.32,3.15]
[1753902701340,11.5589144,172.44,172.37,5.8023]
[1753902701535,11.5589144,172.44,172.32,3.15]
[1753902701536,11.5589144,172.36,172.25,11.613]
[1753902701845,11.5589144,172.36,172.34,5.8034]
[1753902702049,11.5589144,172.33,172.23,3.15]
[1753902702251,169.8,172.41,172.26,3.15]
[1753902702547,11.5589144,172.31,172.24,3.15]
[1753902702746,11.5589144,172.31,172.17,3.15]
[1753902702945,11.5589144,172.28,172.27,5.8055]
[1753902703148,11.5589144,172.28,172.17,3.15]
[1753902703547,11.5589144,172.22,172.18,3.15]
[1753902703746,11.5589144,172.19,172.15,3.15]
[1753902704043,169.74,172.3,172.18,3.15]
[1753902704249,11.5589144,172.22,172.18,3.15]
[1753902704443,11.5589144,172.23,172.19,3.15]
[1753902704643,11.5589144,172.23,172.2,3.15]
[1753902704844,18.84693245,172.28,172.2,3.15]
[1753902705250,18.84693245,172.31,172.2,3.15]
[1753902705450,169.7,172.37,172.34,5.8032]
[1753902705652,169.7,172.37,172.23,18.84693245]
[1753902705849,169.7,172.37,172.24,3.15]
[1753902706046,18.84693245,172.38,172.31,3.15]
[1753902706246,18.84693245,172.41,172.31,3.15]
[1753902706450,408.94693245,172.45,172.31,3.15]
[1753902706651,18.84693245,172.47,172.38,3.15]
[1753902707050,18.84693245,172.44,172.38,3.15]
[1753902707247,18.84693245,172.47,172.38,3.15]
[1753902707443,169.62,172.52,172.24,11.6136]
[1753902707649,18.84693245,172.42,172.34,3.15]
[1753902707951,18.84693245,172.39,172.24,11.6136]
[1753902708254,18.84693245,172.36,172.25,3.15]
[1753902708454,18.84693245,172.39,172.25,3.15]
[1753902708854,124.0,172.51,172.25,3.15]
[1753902709153,18.84693245,172.35,172.26,3.15]
[1753902709357,18.84693245,172.29,172.26,3.15]
[1753902709560,18.84693245,172.29,172.28,5.8055]
[1753902709760,18.84693245,172.29,172.17,11.6183]
[1753902710054,18.84693245,172.32,172.24,3.15]
[1753902710256,18.84693245,172.35,172.24,3.15]
[1753902710450,18.84693245,172.32,172.24,3.15]
[1753902710657,169.5,172.4,172.26,5.8058]
[1753902710850,18.84693245,172.27,172.21,3.15]
[1753902711046,169.5,172.4,172.21,3.15]
[1753902711249,18.84693245,172.31,172.16,11.6184]
[1753902711455,18.84693245,172.31,172.19,3.15]
[1753902711755,18.84693245,172.31,172.15,18.84693245]
[1753902711756,18.84693245,172.31,172.27,5.8056]
[1753902711953,18.84693245,172.28,172.15,3.15]
[1753902712150,18.84693245,172.23,172.15,3.15]
[1753902712351,18.84693245,172.33,172.15,3.15]
[1753902712352,18.84693245,172.22,172.15,3.15]
[1753902712650,18.84693245,172.19,172.07,11.625]
[1753902712854,18.84693245,172.19,172.12,3.15]
[1753902713055,169.34,172.29,172.12,3.15]
[1753902713056,18.84693245,172.23,172.12,3.15]
[1753902714051,18.84693245,172.2,172.12,3.15]
[1753902714955,18.84693245,172.17,172.16,5.8095]
[1753902715254,18.84693245,172.2,172.12,3.15]
[1753902715956,18.84693245,172.2,172.19,5.8085]
[1753902716351,390.3,172.38,172.12,18.84693245]
[1753902716555,18.84693245,172.27,172.16,3.15]
[1753902716753,142.84693245,172.27,172.16,3.15]
[1753902717156,18.84693245,172.27,172.16,3.15]
[1753902717355,18.84693245,172.3,172.16,3.15]
[1753902717555,18.84693245,172.3,172.24,3.15]
[1753902718154,18.84693245,172.3,172.29,5.8051]
[1753902718757,18.84693245,172.3,172.21,3.16]
[1753902718952,5.8047,172.31,172.21,3.16]
[1753902719153,18.84693245,172.33,172.28,5.8054]
[1753902719363,18.84693245,172.29,172.14,3.16]
[1753902719654,3.245e-05,172.23,172.22,8.9675]
[1753902719857,3.245e-05,172.23,172.19,3.16]
[1753902720058,18.84693245,172.2,172.14,3.16]
[1753902720257,9.91433245,172.23,172.14,3.16]
[1753902720453,9.91433245,172.23,172.07,18.84693245]
[1753902720454,18.84693245,172.52,172.16,3.16]
[1753902720658,18.84693245,172.34,172.19,3.16]
[1753902720864,18.84693245,172.31,172.3,5.8048]
[1753902721159,18.84693245,172.34,172.28,3.16]
[1753902721356,18.84693245,172.37,172.36,5.8028]
[1753902721554,18.84693245,172.4,172.36,3.16]
[1753902721758,10.11033245,172.4,172.24,18.84693245]
[1753902721951,18.84693245,172.46,172.45,5.7996]
[1753902722258,18.84693245,172.46,172.33,3.16]
[1753902722857,18.84693245,172.4,172.33,3.16]
[1753902723058,18.84693245,172.4,172.39,5.8018]
[1753902723257,390.3,172.49,172.33,3.16]
[1753902723453,18.84693245,172.4,172.25,30.45953245]
[1753902723661,18.84693245,172.37,172.33,3.16]
[1753902723859,18.84693245,172.37,172.21,3.16]
[1753902724061,18.84693245,172.37,172.36,5.8028]
[1753902724259,18.84693245,172.4,172.27,3.16]
[1753902724463,18.84693245,172.4,172.36,5.8026]
[1753902724657,18.84693245,172.37,172.36,5.8026]
[1753902724858,18.84693245,172.37,172.21,3.16]
[1753902725058,18.84693245,172.33,172.27,3.16]
[1753902725260,18.84693245,172.34,172.27,3.16]
[1753902725563,18.84693245,172.37,172.27,3.16]
[1753902725759,18.84693245,172.4,172.27,3.16]
[1753902725961,187.46693245,172.43,172.27,3.16]
[1753902726158,187.46693245,172.43,172.34,3.16]
[1753902726359,18.84693245,172.37,172.24,3.16]
[1753902726665,18.84693245,172.37,172.35,5.8029]
[1753902726861,18.84693245,172.37,172.29,3.16]
[1753902727068,18.84693245,172.4,172.29,3.16]
[1753902727262,124.0,172.48,172.27,18.84693245]
[1753902727467,124.0,172.48,172.23,11.6141]
[1753902727468,18.84693245,172.46,172.35,3.16]
[1753902727761,18.84693245,172.43,172.35,3.16]
[1753902727971,124.0,172.48,172.35,3.16]
[1753902728159,390.3,172.49,172.47,5.7988]
[1753902728369,390.3,172.49,172.4,3.16]
[1753902728570,18.84693245,172.51,172.4,3.16]
[1753902728973,18.84693245,172.54,172.45,3.16]
[1753902729481,168.4,172.58,172.45,3.16]
[1753902729673,18.84693245,172.54,172.45,3.16]
[1753902729874,18.84693245,172.51,172.5,5.7978]
[1753902730476,24.64693245,172.51,172.38,3.16]
[1753902730671,18.84693245,172.46,172.38,3.16]
[1753902731378,18.84693245,172.55,172.39,14.7633]
[1753902731580,18.84693245,172.55,172.47,3.16]
[1753902731775,124.0,172.57,172.47,3.16]
[1753902731976,18.84693245,172.55,172.47,3.16]
[1753902732171,18.84693245,172.52,172.39,11.6033]
[1753902732371,124.0,172.57,172.44,3.16]
[1753902732776,376.48693245,172.61,172.46,3.16]
[1753902732982,18.84693245,172.58,172.46,3.16]
[1753902733182,18.84693245,172.58,172.57,5.7957]
[1753902733579,18.84693245,172.58,172.51,3.16]
[1753902733783,124.0,172.57,172.51,3.16]
[1753902733977,376.48693245,172.61,172.51,3.16]
[1753902734373,18.84693245,172.58,172.39,11.6032]
[1753902734579,18.84693245,172.52,172.4,3.16]
[1753902734884,291.92,172.57,172.43,3.16]
[1753902735180,124.0,172.57,172.43,3.16]
[1753902735383,124.0,172.57,172.45,3.16]
[1753902735580,357.64,172.61,172.45,3.16]
[1753902735884,18.84693245,172.58,172.47,3.16]
[1753902736185,124.0,172.6,172.47,3.16]
[1753902736378,18.84693245,172.58,172.52,3.16]
[1753902736586,18.84693245,172.55,172.48,3.16]
[1753902736883,18.84693245,172.55,172.54,5.7967]
[1753902737184,18.84693245,172.55,172.48,3.16]
[1753902737483,18.84693245,172.55,172.45,3.16]
[1753902737681,18.84693245,172.52,172.45,3.16]
[1753902737876,18.84693245,172.52,172.51,5.7977]
[1753902738980,18.84693245,172.57,172.47,3.16]
[1753902739480,124.0,172.6,172.59,5.795]
[1753902739783,142.84693245,172.6,172.51,3.16]
[1753902739985,18.84693245,172.57,172.56,5.796]
[1753902740380,18.84693245,172.57,172.51,3.16]
[1753902740885,11.54318287,172.54,172.41,3.16]
[1753902741076,11.54318287,172.48,172.41,3.16]
[1753902741275,11.54318287,172.53,172.41,3.16]
[1753902741480,124.0,172.6,172.44,3.16]
[1753902741679,11.54318287,172.57,172.44,3.16]
[1753902741986,135.54318287,172.6,172.57,5.7955]
[1753902742187,11.54318287,172.62,172.5,3.16]
[1753902742387,167.34,172.66,172.5,3.16]
[1753902742588,11.54318287,172.56,172.55,5.7961]
[1753902742789,124.0,172.65,172.56,3.16]
[1753902742984,11.54318287,172.6,172.58,5.7954]
[1753902743289,11.54318287,172.61,172.57,3.16]
[1753902743482,11.54318287,172.61,172.54,3.16]
[1753902743887,124.0,172.6,172.54,3.16]
[1753902744188,124.0,172.6,172.59,5.795]
[1753902744387,124.0,172.6,172.49,3.16]
[1753902745188,124.0,172.6,172.59,5.795]
[1753902745389,124.0,172.6,172.48,11.54318287]
[1753902745390,124.0,172.6,172.55,3.16]
[1753902745586,135.54318287,172.6,172.55,3.16]
[1753902745784,135.54318287,172.6,172.45,11.599]
[1753902745983,11.54318287,172.57,172.51,3.16]
[1753902746390,11.54318287,172.54,172.51,3.16]
[1753902746584,11.54318287,172.54,172.48,3.16]
[1753902746792,124.0,172.6,172.48,3.16]
[1753902746990,11.54318287,172.57,172.48,3.16]
[1753902747392,124.0,172.6,172.43,3.16]
[1753902747594,11.54318287,172.54,172.43,3.16]
[1753902747793,5.7959,172.57,172.53,5.7971]
[1753902748089,5.7959,172.57,172.48,3.16]
[1753902748090,11.54318287,172.54,172.48,3.16]
[1753902748286,11.54318287,172.54,172.53,5.7971]
[1753902748491,124.0,172.6,172.53,3.16]
[1753902748492,11.54318287,172.57,172.53,3.16]
[1753902748694,11.54318287,172.57,172.5,3.3]
[1753902748888,11.54318287,172.57,172.56,5.7961]
[1753902749093,11.54318287,172.57,172.52,3.3]
[1753902749296,11.54318287,172.57,172.54,5.7967]
[1753902749686,11.54318287,172.57,172.49,3.3]
[1753902749891,11.54318287,172.54,172.46,3.3]
[1753902750088,11.54318287,172.51,172.46,3.3]
[1753902750288,11.54318287,172.51,172.49,5.7982]
[1753902750489,11.54318287,172.51,172.46,3.3]
[1753902750691,11.54318287,172.51,172.43,3.3]
[1753902750892,124.0,172.6,172.38,11.54318287]
[1753902751098,11.54318287,172.57,172.49,3.3]
[1753902751992,124.0,172.6,172.44,11.54318287]
[1753902751993,124.0,172.6,172.5,3.3]
[1753902752198,135.54318287,172.6,172.5,3.3]
[1753902752394,135.54318287,172.6,172.57,5.7955]
[1753902752694,135.54318287,172.6,172.5,3.3]
[1753902752898,11.54318287,172.55,172.44,3.3]
[1753902753198,124.0,172.6,172.54,3.3]
[1753902753497,124.0,172.6,172.47,3.3]
[1753902753697,124.0,172.6,172.47,14.8982]
[1753902753898,124.0,172.6,172.48,3.3]
[1753902754100,166.44,172.65,172.5,3.3]
[1753902754299,11.54318287,172.64,172.5,3.3]
[1753902754500,11.54318287,172.61,172.59,5.795]
[1753902754693,11.54318287,172.61,172.53,3.3]
[1753902754894,11.54318287,172.58,172.54,3.3]
[1753902755096,11.54318287,172.58,172.48,3.3]
[1753902755494,11.54318287,172.58,172.57,5.7957]
[1753902755692,124.0,172.63,172.48,3.3]
[1753902755894,11.54318287,172.6,172.48,3.3]
[1753902756498,124.0,172.63,172.48,3.3]
[1753902756703,357.36,172.72,172.56,11.54318287]
[1753902757002,11.54318287,172.72,172.59,11.54318287]
[1753902757200,124.0,172.72,172.6,3.3]
[1753902757402,11.54318287,172.73,172.62,11.54318287]
[1753902757602,11.54318287,172.73,172.6,3.3]
[1753902757603,11.54318287,172.77,172.7,3.3]
[1753902757904,11.54318287,172.8,172.7,3.3]
[1753902758400,124.0,172.83,172.7,3.3]
[1753902758899,18.7395059,172.78,172.7,3.3]
[1753902759096,18.7395059,172.78,172.72,5.7905]
[1753902759292,124.0,172.83,172.7,3.3]
[1753902759293,18.7395059,172.81,172.7,3.3]
[1753902759997,124.0,172.83,172.7,3.3]
[1753902760199,542.0595059,172.84,172.71,18.7395059]
[1753902760398,542.0595059,172.84,172.72,3.3]
[1753902760703,166.1,172.84,172.72,3.3]
[1753902760903,18.7395059,172.87,172.72,3.3]
[1753902761106,184.6195059,172.9,172.75,3.3]
[1753902761799,5.785,172.89,172.75,3.3]
[1753902762001,18.7395059,172.87,172.75,3.3]
[1753902762309,18.7395059,172.87,172.78,3.3]
[1753902762503,18.7395059,172.84,172.78,3.3]
[1753902762704,18.7395059,172.81,172.75,3.3]
[1753902762901,166.88754209,172.9,172.75,3.3]
[1753902763097,124.0,172.97,172.75,3.3]
[1753902763300,5.785,172.89,172.75,3.3]
[1753902763605,18.7395059,172.9,172.75,3.3]
[1753902763906,18.7395059,172.94,172.78,3.3]
[1753902764300,5.784,172.92,172.87,5.7855]
[1753902764606,18.7395059,172.92,172.78,3.3]
[1753902765006,18.7395059,172.91,172.78,3.3]
[1753902766503,124.0,172.97,172.81,3.3]
[1753902766806,18.7395059,172.96,172.81,3.3]
[1753902767006,18.7395059,172.96,172.88,3.3]
[1753902767400,18.7395059,172.94,172.88,3.3]
[1753902767605,522.28,173.01,172.88,3.3]
[1753902767797,18.7395059,172.94,172.85,3.3]
[1753902768002,5.784,172.92,172.85,3.3]
[1753902768398,5.785,172.89,172.85,3.3]
[1753902768608,18.7395059,172.91,172.85,3.3]
[1753902768915,18.7395059,172.94,172.85,3.3]
[1753902769110,18.7395059,172.94,172.78,3.3]
[1753902769313,18.7395059,172.91,172.78,3.3]
[1753902769616,18.7395059,172.88,172.78,3.3]
[1753902770106,18.7395059,172.85,172.78,3.3]
[1753902770513,18.7395059,172.82,172.74,3.3]
[1753902771415,18.7395059,172.82,172.81,5.7877]
[1753902771814,18.7395059,172.82,172.69,3.3]
[1753902772402,18.7395059,172.82,172.8,5.7879]
[1753902772608,18.7395059,172.82,172.77,3.3]
[1753902772913,18.7395059,172.79,172.66,3.3]
[1753902773503,18.7395059,172.76,172.64,3.3]
[1753902773715,18.7395059,172.74,172.64,3.3]
[1753902774016,18.7395059,172.74,172.67,3.3]
[1753902774909,18.7395059,172.71,172.67,3.3]
[1753902775311,18.7395059,172.71,172.7,5.7913]
[1753902775508,18.7395059,172.71,172.67,3.3]
[1753902775704,18.7395059,172.71,172.64,3.3]
[1753902776608,18.7395059,172.74,172.64,3.3]
[1753902776908,164.48,172.8,172.64,3.3]
[1753902777117,18.7395059,172.77,172.64,3.3]
[1753902777314,18.7395059,172.77,172.69,3.3]
[1753902777714,18.7395059,172.77,172.66,3.3]
[1753902777912,18.7395059,172.74,172.66,3.3]
[1753902778413,18.7395059,172.77,172.66,3.3]
[1753902778916,11.51283718,172.76,172.66,3.3]
[1753902780215,11.51283718,172.79,172.75,3.22]
[1753902780416,356.7,172.86,172.71,11.51283718]
[1753902780617,17.29923718,172.85,172.72,3.22]
[1753902780817,11.51283718,172.82,172.72,3.22]
[1753902781214,11.51283718,172.86,172.75,3.22]
[1753902781417,11.51283718,172.83,172.76,3.22]
[1753902781714,169.9657,172.87,172.76,3.22]
[1753902781924,11.51283718,172.84,172.76,3.22]
[1753902782414,164.18,172.87,172.8,3.22]
[1753902782415,11.51283718,172.87,172.8,3.22]
[1753902782822,164.04,172.96,172.8,3.22]
[1753902783010,356.78,172.98,172.8,3.22]
[1753902783210,11.51283718,172.92,172.91,5.7843]
[1753902783519,11.51283718,172.92,172.82,3.22]
[1753902783720,11.51283718,172.89,172.82,3.22]
[1753902783911,11.51283718,172.92,172.85,3.22]
[1753902784317,17.29683718,172.92,172.85,3.22]
[1753902784512,11.51283718,172.89,172.78,3.22]
[1753902784820,11.51283718,172.81,172.69,3.22]
[1753902785016,11.51283718,172.76,172.69,3.22]
[1753902785320,5.788,172.81,172.69,3.22]
[1753902785619,163.8,172.83,172.7,3.22]
[1753902785921,11.51283718,172.81,172.73,3.22]
[1753902786416,11.51283718,172.81,172.8,5.788]
[1753902786917,11.51283718,172.84,172.83,5.787]
[1753902787122,11.51283718,172.87,172.79,3.22]
[1753902787313,124.0,173.0,172.79,3.22]
[1753902787619,11.51283718,172.95,172.82,3.22]
[1753902787820,11.51283718,172.97,172.85,3.22]
[1753902788016,11.51283718,172.97,172.96,5.7826]
[1753902788420,135.51283718,173.0,172.92,3.22]
[1753902788723,11.51283718,172.97,172.92,3.22]
[1753902788927,11.51283718,172.94,172.84,3.22]
[1753902789116,124.0,173.0,172.84,3.22]
[1753902789317,11.51283718,172.92,172.84,3.22]
[1753902789517,11.51283718,172.91,172.84,3.22]
[1753902789712,11.51283718,172.92,172.84,3.22]
[1753902789924,11.51283718,172.86,172.8,3.22]
[1753902790119,5.784,172.93,172.89,5.785]
[1753902790321,11.51283718,172.91,172.8,3.22]
[1753902790519,11.51283718,172.92,172.8,3.22]
[1753902790723,11.51283718,172.91,172.89,5.7849]
[1753902790938,11.51283718,172.91,172.83,3.22]
[1753902791321,11.51283718,172.92,172.83,3.22]
[1753902791824,163.32,172.97,172.91,5.7843]
[1753902792026,163.32,172.97,172.86,3.22]
[1753902792520,11.51283718,172.95,172.86,3.22]
[1753902792821,11.51283718,172.95,172.81,11.5751]
[1753902792822,163.32,172.97,172.75,11.51283718]
[1753902793023,11.51283718,172.88,172.77,3.22]
[1753902793326,11.51283718,172.88,172.87,5.7857]
[1753902793619,11.51283718,172.88,172.76,11.5781]
[1753902793827,11.51283718,172.85,172.84,5.7865]
[1753902794026,11.51283718,172.88,172.82,3.22]
[1753902794717,11.51283718,172.92,172.82,3.22]
[1753902794921,163.32,172.97,172.81,3.22]
[1753902795113,163.32,172.97,172.82,11.51283718]
[1753902795319,11.51283718,172.96,172.95,5.783]
[1753902795720,11.51283718,172.96,172.88,3.22]
[1753902795921,11.51283718,172.96,172.95,5.783]
[1753902796119,124.0,173.0,172.88,3.22]
[1753902796320,129.78,173.0,172.78,3.22]
[1753902796531,129.78,173.0,172.79,3.22]
[1753902796532,1.00690074,172.98,172.79,3.22]
[1753902796722,11.51283718,172.82,172.79,3.22]
[1753902797026,11.51283718,172.82,172.73,3.22]
[1753902797223,11.51283718,172.76,172.73,3.22]
[1753902797425,11.51283718,172.76,172.7,3.22]
[1753902797618,11.51283718,172.73,172.66,3.22]
[1753902797826,11.51283718,172.71,172.66,3.22]
[1753902798028,11.51283718,172.7,172.69,5.7917]
[1753902798226,11.51283718,172.74,172.69,3.22]
[1753902798623,11.51283718,172.71,172.65,3.22]
[1753902798823,11.51283718,172.75,172.65,3.22]
[1753902799226,11.51283718,172.75,172.68,3.22]
[1753902799617,11.51283718,172.75,172.69,3.22]
[1753902799823,11.51283718,172.76,172.69,3.22]
[1753902800025,11.51283718,172.77,172.69,3.22]
[1753902800225,11.51283718,172.81,172.74,3.22]
[1753902800527,11.51283718,172.89,172.76,3.22]
[1753902800739,11.51283718,172.91,172.79,3.22]
[1753902800924,11.51283718,172.92,172.79,3.22]
[1753902801320,162.52,172.97,172.85,3.22]
[1753902801526,11.51283718,172.93,172.85,3.22]
[1753902801722,11.51283718,172.93,172.89,5.785]
[1753902801921,11.51283718,172.9,172.85,3.22]
[1753902802125,162.52,172.97,172.78,3.22]
[1753902802334,5.7836,172.94,172.86,3.22]
[1753902802531,11.51283718,172.95,172.86,3.22]
[1753902803126,162.52,172.97,172.86,3.22]
[1753902803326,11.51283718,172.96,172.86,3.22]
[1753902803529,11.51283718,172.97,172.86,3.22]
[1753902803833,11.51283718,172.99,172.87,3.22]
[1753902804227,11.51283718,172.92,172.87,3.22]
[1753902804423,11.51283718,172.92,172.9,3.22]
[1753902804631,356.62,173.01,172.8,11.51283718]
[1753902804632,356.62,173.01,172.8,3.22]
[1753902804835,11.51283718,172.91,172.86,5.7859]
[1753902805134,11.51283718,172.88,172.75,11.51283718]
[1753902805536,11.51283718,172.9,172.76,3.22]
[1753902805832,11.51283718,172.87,172.76,3.22]
[1753902806137,162.18,172.96,172.76,3.22]
[1753902806339,11.51283718,172.91,172.79,3.22]
[1753902806539,162.18,172.96,172.88,3.22]
[1753902806834,11.51283718,172.93,172.84,3.22]
[1753902807633,11.51283718,172.89,172.79,3.22]
[1753902808043,11.51283718,172.86,172.79,3.22]
[1753902808937,11.51283718,172.92,172.73,356.62]
[1753902809141,11.51283718,172.88,172.75,11.51283718]
[1753902809342,11.51283718,172.88,172.76,3.19]
[1753902809542,11.51283718,172.91,172.79,3.19]
[1753902809738,161.9,173.0,172.81,11.51283718]
[1753902809739,11.51283718,172.94,172.81,11.51283718]
[1753902809944,5.7838,172.93,172.88,5.7853]
[1753902810242,11.51283718,172.94,172.88,3.19]
[1753902810940,11.51283718,172.94,172.77,161.82]
[1753902811140,11.51283718,172.94,172.83,3.19]
[1753902811332,11.51283718,172.97,172.86,3.19]
[1753902811537,11.51283718,172.99,172.86,3.19]
[1753902811745,11.51283718,172.99,172.88,11.51283718]
[1753902811934,11.51283718,173.02,172.98,3.19]
[1753902812139,4.67658819,173.04,172.91,11.51283718]
[1753902812448,4.67658819,173.04,172.95,3.19]
[1753902813444,11.51283718,173.02,172.95,3.19]
[1753902813647,11.51283718,173.02,172.99,5.7815]
[1753902813844,11.51283718,173.02,172.95,3.19]
[1753902814241,11.51283718,173.02,172.98,5.7818]
[1753902814441,11.51283718,173.02,172.95,3.19]
[1753902814745,4.67658819,173.04,172.96,3.19]
[1753902814746,16.18942537,173.04,172.96,3.19]
[1753902815145,16.18942537,173.04,173.01,5.781]
[1753902815346,16.18942537,173.04,172.96,3.19]
[1753902815542,11.51283718,173.15,173.02,11.51283718]
[1753902815743,11.51283718,173.09,173.03,3.19]
[1753902815945,11.51283718,173.06,172.94,3.19]
[1753902816141,11.51283718,173.06,172.96,11.51283718]
[1753902816444,14.83283718,173.17,173.06,3.19]
[1753902816851,3.32,173.23,173.06,3.19]
[1753902817049,14.83283718,173.2,173.09,3.19]
[1753902817246,3.32,173.16,173.06,3.19]
[1753902817641,161.3,173.27,173.07,3.19]
[1753902817848,3.32,173.18,173.07,3.19]
[1753902818048,11.51283718,173.17,173.07,3.19]
[1753902818348,11.51283718,173.23,173.1,14.70283718]
[1753902818542,3.32,173.33,173.15,11.51283718]
[1753902818742,5.7717,173.29,173.24,5.7733]
[1753902818946,3.32,173.28,173.16,3.19]
[1753902819149,11.51283718,173.3,173.16,3.19]
[1753902819350,14.83283718,173.31,173.19,3.19]
[1753902819741,14.83283718,173.31,173.24,5.7731]
[1753902820052,11.51283718,173.26,173.22,3.19]
[1753902820249,3.32,173.33,173.16,3.19]
[1753902820451,388.66,173.34,173.19,3.19]
[1753902820743,388.66,173.34,173.29,5.7715]
[1753902820948,14.83283718,173.33,173.21,11.51283718]
[1753902821144,14.83283718,173.3,173.25,3.19]
[1753902821350,11.51283718,173.28,173.25,5.7727]
[1753902821656,11.51283718,173.28,173.1,160.96]
[1753902821657,3.32,173.27,173.14,3.19]
[1753902821956,11.51283718,173.26,173.2,3.19]
[1753902822154,11.51283718,173.26,173.04,183.95233718]
[1753902822355,14.83283718,173.2,173.15,5.7763]
[1753902822659,3.32,173.17,173.05,3.19]
[1753902822958,11.51283718,173.16,173.05,3.19]
[1753902823558,3.32,173.17,173.1,3.19]
[1753902823758,11.51283718,173.15,173.1,3.19]
[1753902823959,3.32,173.14,173.05,3.19]
[1753902824458,11.51283718,173.2,173.08,3.19]
[1753902824661,3.32,173.22,173.11,3.19]
[1753902824966,18.63095717,173.26,173.12,3.19]
[1753902825260,18.63095717,173.26,173.12,18.63095717]
[1753902825460,3.32,173.28,173.13,3.19]
[1753902825857,18.63095717,173.32,173.19,3.19]
[1753902826057,3.32,173.33,173.31,5.7706]
[1753902826361,18.63095717,173.32,173.19,3.19]
[1753902826563,3.32,173.32,173.19,3.19]
[1753902826858,18.63095717,173.3,173.19,3.19]
[1753902827065,3.32,173.32,173.19,3.19]
[1753902827362,3.32,173.35,173.19,3.19]
[1753902827664,128.63288176,173.36,173.19,3.19]
[1753902827866,3.32,173.34,173.19,3.19]
[1753902828260,4.63288176,173.36,173.25,3.19]
[1753902828462,4.63288176,173.36,173.35,5.7697]
[1753902828768,4.63288176,173.36,173.29,3.19]
[1753902829167,7.95288176,173.36,173.29,3.19]
[1753902829459,4.63288176,173.36,173.31,3.19]
[1753902829664,4.63288176,173.36,173.33,3.19]
[1753902829863,4.63288176,173.36,173.34,3.19]
[1753902830065,4.63288176,173.36,173.35,5.7696]
[1753902830962,8.176e-05,173.36,173.35,8.9596]
[1753902831863,21.95095717,173.47,173.32,3.19]
[1753902832059,3.32,173.47,173.32,3.19]
[1753902832257,21.95095717,173.47,173.32,3.19]
[1753902832461,3.32,173.46,173.32,3.19]
[1753902832865,3.32,173.46,173.33,18.63095717]
[1753902833074,18.63095717,173.49,173.34,3.19]
[1753902833465,21.95095717,173.5,173.35,3.19]
[1753902833864,3.32,173.49,173.36,3.19]
[1753902834768,3.32,173.48,173.36,3.19]
[1753902835071,18.63095717,173.47,173.36,3.19]
[1753902835261,3.32,173.46,173.36,3.19]
[1753902835769,3.32,173.51,173.36,3.19]
[1753902835969,18.63095717,173.5,173.36,3.19]
[1753902836162,5.7655,173.48,173.36,3.19]
[1753902836370,3.32,173.44,173.36,3.19]
[1753902836962,18.63095717,173.47,173.36,3.19]
[1753902837165,3.32,173.46,173.36,3.19]
[1753902837867,3.32,173.43,173.36,3.19]
[1753902838172,3.32,173.42,173.36,3.19]
[1753902838368,124.0,173.52,173.36,3.19]
[1753902838664,3.32,173.46,173.36,3.19]
[1753902838866,3.02,173.43,173.32,3.25]
[1753902839365,18.63095717,173.41,173.32,3.25]
[1753902839570,3.02,173.4,173.32,3.25]
[1753902839767,18.63095717,173.38,173.32,3.25]
[1753902840171,18.63095717,173.5,173.36,3.25]